Cogmind - Beta 16 @@@ ROGUE MODE // 2025.10.23 @ 16:01:47 Player: MAXX-P31 Result: Destroyed self via exploding Fusion Modulator Performance ------------- Evolutions (4) 2000 Regions Visited (16) 3200 Robots Destroyed (312) 1560 Value Destroyed (10957) 10957 Prototype IDs (30) 600 Alien Tech Used (0) 0 Bonus (1758) 1758 TOTAL SCORE: 20075 Bonus ------- High Alert Combat Kills 747 Follower Combat Kills 235 Entered Garrisons 600 Used RIF Installer 1000 Friendly Fire -824 Cogmind --------- Core Integrity 0/850 Matter 72/300 Energy 96/100 System Corruption 12% Temperature Cool (24) Movement Core (200) Ox3 Location -6/Factory Parts ------- > --- POWER (2) -------- (None) > --- PROPULSION (4) --- (None) > --- UTILITY (5) ------ Improved Cooling System > --- WEAPON (4) ------- Antimatter Cannon > --- INVENTORY (5) ---- Matter Compressor (250) Heavy Plasma Cannon Peak State ------------ > --- POWER ------------ Heavy Ion Engine Reinforced Deuterium Engine > --- PROPULSION ------- Medium Treads Medium Treads Medium Treads Medium Treads > --- UTILITY ---------- Improved Cooling System Huge Storage Unit Hardened Medium Armor Plating Hacking Suite Relay Coupler [NC] > --- WEAPON ----------- Backup Laser VII Heavy Ion Cannon Cooled Plasma Cannon 8R-AWN's Boregun > --- INVENTORY -------- Improved Ion Engine Light Treads Armored Treads Experimental Heat Sink Improved Cooling System Energy Well Matter Compressor IFF Parser Weapon Cycler Improved Medium Armor Plating Graphene Brace Force Field System Shield Relay Coupler [Swarmer] Relay Coupler [Grunt] Splice Drone Bay Thermic Laser Flak Gun Heavy Flak Cannon Advanced EMP Blaster Advanced EMP Blaster Rocket Launcher Remote Datajack Greatsword [Rating: 72] Favorites ----------- Power Reinforced Deuterium Engine Engine Reinforced Deuterium Engine Propulsion Armored Treads Treads Armored Treads Leg Flexi-carbon Leg Wheel Compact Wheel Utility Improved Cooling System Device Improved Cooling System Storage Huge Storage Unit Hackware Hacking Suite Protection Core Shielding Weapon Cooled Pulse Rifle Energy Gun Cooled Pulse Rifle Energy Cannon Heavy Ion Cannon Ballistic Gun Minigun Ballistic Cannon Light Cannon Launcher Rocket Launcher Special Weapon Remote Datajack Impact Weapon Flail Slashing Weapon Greatsword Build | -11 -10 -10 -9 -9 -9 -8 -8 -8 -8 -8 -7 -7 -7 -6 -6 -6 ------- Run | Yrd Mat Min Mat Min Exi Min Mat Gar Mat Gar Fac Was Fac Fac Gar Fac Slots Evolved 8 | . . . 2 . . . 2 . . . 2 . . 2 . . Power 1 | . . . . . . . . . . . . . . 1 . . Propulsion 2 | . . . . . . . 1 . . . . . . 1 . . Utility 3 | . . . 1 . . . 1 . . . 1 . . . . . Weapon 2 | . . . 1 . . . . . . . 1 . . . . . Parts Attached 160 | 6 6 1 24 2 10 3 25 2 15 8 14 2 5 30 6 1 Power 13 | 1 1 . 3 . . . 2 . . . 1 . . 5 . . Engine 13 | 1 1 . 3 . . . 2 . . . 1 . . 5 . . Core . | . . . . . . . . . . . . . . . . . Reactor . | . . . . . . . . . . . . . . . . . Propulsion 42 | 2 . . 6 1 2 . 7 . 6 1 2 . . 13 2 . Treads 33 | 2 . . 6 1 1 . 7 . 6 1 2 . . 7 . . Leg 4 | . . . . . 1 . . . . . . . . 1 2 . Wheel 5 | . . . . . . . . . . . . . . 5 . . Hover . | . . . . . . . . . . . . . . . . . Flight . | . . . . . . . . . . . . . . . . . Utility 42 | 1 2 1 2 1 3 1 8 . 5 2 4 1 4 5 2 . Device 14 | . . 1 2 . 3 1 4 . . . 1 . . 2 . . Storage 7 | 1 1 . . . . . 1 . 1 . 1 . . 2 . . Processor . | . . . . . . . . . . . . . . . . . Hackware 5 | . . . . . . . . . . 2 . 1 . . 2 . Protection 16 | . 1 . . 1 . . 3 . 4 . 2 . 4 1 . . Artifact . | . . . . . . . . . . . . . . . . . Weapon 63 | 2 3 . 13 . 5 2 8 2 4 5 7 1 1 7 2 1 Energy Gun 16 | 2 1 . 1 . . 1 7 . 1 . 1 . . 1 1 . Energy Cannon 8 | . . . 1 . . . . . . 4 . 1 . 2 . . Ballistic Gun 24 | . 1 . 10 . 1 . . 1 2 1 4 . 1 3 . . Ballistic Cannon 5 | . 1 . . . . 1 . . . . 1 . . 1 . 1 Launcher 6 | . . . . . 2 . 1 . 1 . 1 . . . 1 . Special Weapon 1 | . . . . . . . . 1 . . . . . . . . Impact Weapon 1 | . . . 1 . . . . . . . . . . . . . Slashing Weapon 2 | . . . . . 2 . . . . . . . . . . . Piercing Weapon . | . . . . . . . . . . . . . . . . . Special Melee Weapon . | . . . . . . . . . . . . . . . . . Unidentified Prototypes 15 | . . 1 3 . 4 . 2 . 2 . 1 . . 1 . 1 Parts Lost 46 | . 1 . 1 . 2 . 2 . 1 3 3 . . 17 16 . Power 6 | . . . 1 . . . . . . . . . . 3 2 . Propulsion 15 | . . . . . 1 . . . . 1 1 . . 7 5 . Utility 7 | . . . . . 1 . 2 . . 1 1 . . 1 1 . Weapon 18 | . 1 . . . . . . . 1 1 1 . . 6 8 . Highest Loss Streak 13 | . 1 . 1 . 2 . 1 . 1 2 2 . . 8 13 . To Critical Strikes 2 | . . . . . 2 . . . . . . . . . . . Average Backups 18 | 1 8 14 14 14 12 14 17 18 23 23 23 24 23 23 20 2 Power 1 | . 1 1 . 1 . 1 1 2 2 2 1 1 1 . . . Propulsion 2 | . 1 3 2 2 1 2 1 2 2 2 2 3 3 1 1 . Utility 7 | . 3 4 6 4 2 3 5 6 8 9 10 11 11 13 12 1 Weapon 6 | . 2 5 5 6 6 7 7 7 9 8 8 8 7 6 5 1 Tool/Special . | . . . . . . . . . . . . . . . . . Unused Backups 51 | . 2 . 9 3 3 . 7 3 6 3 1 . . 3 10 1 Power 8 | . 1 . 1 . 3 . . 1 . . 1 . . . 1 . Propulsion 9 | . . . 2 . . . 2 . 2 1 . . . 2 . . Utility 20 | . 1 . 3 1 . . 3 . . 1 . . . 1 9 1 Weapon 14 | . . . 3 2 . . 2 2 4 1 . . . . . . Tool/Special . | . . . . . . . . . . . . . . . . . Average Slot Usage (%) 95 | . 98 100 99 100 94 99 96 89 94 98 93 84 93 96 70 9 Engine 10 | . 14 14 10 11 11 11 9 9 9 9 6 7 7 11 9 . Treads 24 | . 28 28 21 22 21 22 26 27 27 26 22 23 22 22 . . Device 9 | . . . 10 11 12 12 13 9 9 16 11 1 3 7 4 6 Storage 9 | . 14 14 11 11 11 11 9 9 9 9 7 7 7 6 6 . Hackware 3 | . . . . . . . . . . 6 7 12 15 13 14 . Protection 9 | . 12 14 11 11 9 9 10 9 13 3 5 7 9 4 . . Energy Gun 8 | . 13 . 3 . . . 26 17 13 4 1 . 3 4 . . Energy Cannon 2 | . . . . . . . . . . 10 8 . 7 8 . . Ballistic Gun 14 | . 2 14 29 33 18 32 . 2 13 9 16 9 11 9 1 . Ballistic Cannon 1 | . 11 14 . . . . . . . . . 7 3 . . 2 Peak Build Rating 72 | 6 8 14 21 22 40 35 47 46 53 50 55 57 56 72 56 11 Average Rating 36 | 5 7 8 19 21 24 31 40 45 47 43 51 54 52 59 38 8 On Entrance 31 | . 6 8 9 21 22 35 28 46 46 49 43 53 55 55 56 5 Avg Prop Armor Cover (%) 14 | . . . . . . . . . . 6 . . . 15 5 . Naked Turns 14 | . . . . . . . . . . . . . . . 14 . Heaviest Build 140 | 12 31 30 40 40 43 43 89 89 130 122 132 136 134 140 115 10 Greatest Support 112 | 40 40 40 46 40 40 40 65 63 63 62 60 60 60 112 58 3 Greatest Overweight (x) 7 | . . . . . 2 1 1 1 2 2 2 2 3 7 4 3 Average Overweight (x) . | . . . . . . . . 1 1 1 1 2 1 2 1 . Largest Inventory Capacity 25 | 8 15 15 15 15 15 15 20 20 25 25 25 25 25 25 25 5 Average Capacity 19 | 7 11 15 15 15 15 15 18 20 24 25 25 25 25 25 20 5 Most Carried 25 | 2 13 15 15 15 15 15 20 20 25 25 25 25 25 25 25 2 Average Carried 19 | 1 8 14 14 14 13 15 18 19 24 24 24 24 24 24 20 2 Final Capacity 25 | 8 15 15 15 15 15 15 20 20 25 25 25 25 25 25 5 5 Final Carried 25 | 2 13 15 15 15 15 15 20 20 25 25 25 25 25 25 2 2 Class Distribution -------------------- 70% | Tank 15% | Mutant 4% | Gunner Dominant Class ---------------- Mutant | -10/Materials Mutant | -10/Mines Tank | -9/Materials Tank | -9/Mines Tank | -9/Exiles Tank | -8/Mines Tank | -8/Materials Tank | -8/Garrison Tank | -8/Materials Gunner | -8/Garrison Tank | -7/Factory Tank | -7/Waste Tank | -7/Factory Tank | -6/Factory Bothacker-Mutant | -6/Garrison Mutant | -6/Factory Resources | -11 -10 -10 -9 -9 -9 -8 -8 -8 -8 -8 -7 -7 -7 -6 -6 -6 ----------- Run | Yrd Mat Min Mat Min Exi Min Mat Gar Mat Gar Fac Was Fac Fac Gar Fac Matter Collected 8029 | 260 393 152 1035 130 113 574 375 77 732 651 951 1 629 1945 11 . Remotely . | . . . . . . . . . . . . . . . . . Salvage Created 13772 | 206 379 50 2015 272 114 747 2266 . 1220 1058 1415 . 510 3410 110 . Parts 721 | 14 33 10 119 16 3 31 104 . 63 64 80 . 30 148 6 . Haulers Intercepted 20 | . 2 . 5 . . . 4 . 5 . 2 . . 2 . . Recyclers Shooed 12 | . . . 2 . . . . . 1 . 1 . . 8 . . Parts Field Recycled . | . . . . . . . . . . . . . . . . . Retrieved Matter . | . . . . . . . . . . . . . . . . . Parts Self-Destructed . | . . . . . . . . . . . . . . . . . Prevented . | . . . . . . . . . . . . . . . . . Parts Restored . | . . . . . . . . . . . . . . . . . Kills | -11 -10 -10 -9 -9 -9 -8 -8 -8 -8 -8 -7 -7 -7 -6 -6 -6 ------- Run | Yrd Mat Min Mat Min Exi Min Mat Gar Mat Gar Fac Was Fac Fac Gar Fac Combat Hostiles Destroyed 223 | . 11 5 36 6 4 6 42 . 14 23 24 . 9 36 7 . Melee 5 | . . . . . 1 . . . . . 1 . . 3 . . Guns 157 | . 3 1 36 6 1 6 37 . 14 18 14 . 2 17 2 . Cannons 41 | . 8 4 . . . . . . . 5 3 . 7 13 1 . AOE 16 | . . . . . 2 . 3 . . . 6 . . 1 4 . Classes Destroyed 19 | 3 5 . 3 1 1 . 2 . 1 1 2 . . . . . Worker 10 | 1 1 . 3 . . . 1 . 2 . . . . 2 . . Builder 8 | . . . 1 . . . . . 2 . . . . 5 . . Tunneler 9 | 5 1 . . . . 2 . . . . . . . 1 . . Hauler 20 | . 2 . 5 . . . 4 . 5 . 2 . . 2 . . Recycler 23 | 1 . . 4 . . 1 2 . 2 . 4 . 1 8 . . Mechanic 1 | . . . . . . . . . . . 1 . . . . . Operator 6 | . 2 . 1 . . . 1 . 2 . . . . . . . Watcher 13 | . 2 . 4 . . . 2 . 2 . . . 1 2 . . Swarmer 52 | . 6 5 12 . . . 11 . 5 3 . . . 4 6 . Grunt 85 | . 5 . 14 5 . 6 14 . 6 10 6 . 4 14 1 . Brawler 5 | . . . . 1 . . 2 . 1 1 . . . . . . Duelist 4 | . . . 1 . . . . . . 2 . . . 1 . . Protector 1 | . . . . . . . . . . . 1 . . . . . Sentry 38 | . . . 9 . . . 12 . 2 4 3 . 2 6 . . Specialist 5 | . . . . . . . 2 . . . 1 . . 2 . . Hunter 12 | . . . . . . . . . 1 . 6 . 1 4 . . Programmer 14 | . . . . . . . . . . 3 5 . 2 4 . . Heavy 4 | . . . . . . . 1 . . . 2 . . 1 . . Assembled 7 | . . . . . 7 . . . . . . . . . . . Savage 1 | . . . . . . . . . 1 . . . . . . . Best Kill Streak 12 | 7 5 3 5 3 3 3 6 . 4 7 10 . 3 12 4 . Combat Bots Only 9 | . 3 3 4 3 3 2 6 . 3 7 9 . 3 7 4 . Max Kills in Single Turn 4 | 1 1 1 2 1 4 1 2 . 2 2 4 . 1 2 3 . Gunslinging 1 | . . . 1 . . . 1 . 1 1 . . . . . . Exploded 4 | . . . . . 2 . 2 . . . 4 . . 1 3 . Melee 1 | . . . . . 1 . . . . . 1 . . 1 . . Uniques/NPCs Destroyed 1 | . . . . . 1 . . . . . . . . . . . 8R-AWN (-9/Exiles) Combat | -11 -10 -10 -9 -9 -9 -8 -8 -8 -8 -8 -7 -7 -7 -6 -6 -6 -------- Run | Yrd Mat Min Mat Min Exi Min Mat Gar Mat Gar Fac Was Fac Fac Gar Fac Hostile Shots Fired 1270 | . 38 9 108 11 54 18 160 . 48 92 139 . 91 393 109 . Missed 376 | . 11 3 26 6 12 3 58 . 11 21 48 . 30 117 30 . Hits 894 | . 27 6 82 5 42 15 102 . 37 71 91 . 61 276 79 . Melee 2 | . . . . . . . 1 . . 1 . . . . . . Projectile 892 | . 27 6 82 5 42 15 101 . 37 70 91 . 61 276 79 . AOE 7 | . . . . . . . . . . 6 1 . . . . . Critical Strikes 49 | . 1 . 2 . 21 . 7 . 2 7 2 . 2 4 1 . Actively Blocked 3 | . . . . . 3 . . . . . . . . . . . Part Disruptions 4 | . . . . . . . . . . . . . . 4 . . Damage Taken 13350 | . 312 49 705 48 554 221 1423 . 659 1179 1957 . 800 3852 1380 211 Core 1627 | . 18 12 75 . 73 49 94 . 65 72 157 . 70 384 446 112 Absorbed by Shields 953 | . . . 271 18 171 24 136 . . . 234 . . . 99 . Redirected to Shielding 47 | . 3 2 13 . 15 10 4 . . . . . . . . . Ignored by Resistances 26 | . . . . . . . . . . . . . 6 20 . . Regen/Repaired (Parts) 217 | . . . 105 . . . 112 . . . . . . . . . Core Remaining (%) 72 | 100 . 88 . . . 50 . . . 58 . . 67 . . . Volleys Fired 716 | 17 51 12 95 10 5 50 106 17 60 58 50 15 35 114 20 1 Largest 4 | 2 2 2 3 3 3 3 3 1 3 3 4 3 4 4 3 1 Hottest 248 | 100 100 50 102 73 73 80 180 28 75 195 220 145 171 248 138 33 Shots Fired 1938 | 34 97 24 282 30 9 84 313 17 172 166 190 28 82 383 26 1 Gun 1559 | 34 53 12 282 30 5 84 311 5 172 126 144 13 41 236 11 . Cannon 321 | . 44 12 . . . . . . . 39 36 9 41 138 1 1 Launcher 28 | . . . . . 4 . 2 . . 1 10 . . 6 5 . Special 30 | . . . . . . . . 12 . . . 6 . 3 9 . Kinetic 1023 | . 45 24 248 30 5 84 2 3 96 85 137 21 49 186 7 1 Thermal 853 | 34 48 . 34 . . . 309 2 76 80 43 1 33 188 5 . Explosive 21 | . . . . . 4 . 2 . . . 10 . . . 5 . Electromagnetic 11 | . 4 . . . . . . . . 1 . . . 6 . . Robot Hit Streak 29 | 5 9 4 29 7 4 10 27 8 16 15 18 4 6 18 5 . Robot Miss Streak 10 | 2 4 3 3 1 1 4 4 2 4 3 2 3 10 6 5 . Penetration Max 2 | . . . . . . 2 . . 1 1 . 1 . 2 . . Secondary Targets 20 | . . . 3 1 1 1 5 . 2 5 2 . . . . . Max Gunslinging Chain 1 | . . . 1 1 1 1 1 . 1 1 1 . . . . . Shots Hit Robots 1251 | 22 57 8 189 20 19 51 207 11 106 98 138 15 39 259 12 . Core Hits 592 | 8 28 5 72 9 19 21 78 1 39 40 78 . 20 153 21 . Critical Kills 11 | . . . . . . 5 . . . 2 . . . 3 1 . Critical Parts Destroyed 19 | . . . 2 . . 8 . . 1 . . . . 8 . . Critical Strikes 66 | 1 5 2 7 . 1 13 9 . 4 3 . 3 1 16 1 . Burn 27 | 1 5 . 5 . . . 9 . 3 . . . . 4 . . Destroy 35 | . . . 2 . . 13 . . 1 3 . 3 . 12 1 . Blast 3 | . . 2 . . . . . . . . . . 1 . . . Sever 1 | . . . . . 1 . . . . . . . . . . . Melee Attacks 40 | . . . 1 . 22 . . . . . . . . 16 1 . Impact 1 | . . . 1 . . . . . . . . . . . . . Slashing 39 | . . . . . 22 . . . . . . . . 16 1 . Piercing . | . . . . . . . . . . . . . . . . . Sneak Attacks 5 | . . . . . . . . . . . . . . 5 . . Combat Hostiles . | . . . . . . . . . . . . . . . . . Follow-up Attacks . | . . . . . . . . . . . . . . . . . Damage Inflicted 28656 | 272 931 137 2975 329 1164 954 4455 18 2189 2114 3974 526 1054 6934 630 . Guns 18563 | 272 311 26 2962 320 62 954 4226 18 2143 1728 1951 164 343 2871 212 . Cannons 5956 | . 610 101 . . . . . . . 366 860 362 703 2923 31 . Explosions 2531 | . . . . . 499 . 212 . . 20 1142 . . 271 387 . Melee 1441 | . . . . . 603 . . . . . . . . 838 . . Ramming 165 | . 10 10 13 9 . . 17 . 46 . 21 . 8 31 . . Kinetic 12200 | . 610 127 2544 320 62 954 . . 1112 1041 1846 500 514 2481 89 . Thermal 12319 | 272 311 . 418 . . . 4226 18 1031 1053 965 26 532 3313 154 . Explosive 2240 | . . . . . 499 . 212 . . . 1142 . . . 387 . Electromagnetic 291 | . . . . . . . . . . 20 . . . 271 . . Impact . | . . . . . . . . . . . . . . . . . Slashing 1441 | . . . . . 603 . . . . . . . . 838 . . Piercing . | . . . . . . . . . . . . . . . . . Highest Corruption 30 | . . . . . . . 3 3 3 3 3 30 30 12 12 12 Average Corruption 5 | . . . . . . . 3 3 3 3 2 16 30 5 12 12 Corruption Purged . | . . . . . . . . . . . . . . . . . Corruption Blocked . | . . . . . . . . . . . . . . . . . Effects 250 | . . . . . . . 33 21 53 25 11 13 48 34 10 2 Message Errors 62 | . . . . . . . 10 10 17 4 1 2 8 7 3 . Matter Fused 52 | . . . . . . . 5 3 13 9 3 1 10 5 2 1 Heat Flow Errors 24 | . . . . . . . 4 1 8 1 1 2 5 2 . . Energy Discharges 32 | . . . . . . . 4 3 6 4 2 1 4 7 1 . Parts Rejected 8 | . . . . . . . . . . 2 . 1 2 3 . . Parts Fused 1 | . . . . . . . . . 1 . . . . . . . Data Loss (minor) 30 | . . . . . . . 3 2 5 3 4 2 4 5 1 1 Data Loss (major) 11 | . . . . . . . 4 2 1 . . . 2 1 1 . Misfires 11 | . . . . . . . 2 . 1 . . 1 4 2 1 . Alerts 1 | . . . . . . . . . . 1 . . . . . . Weapon Failures 18 | . . . . . . . 1 . 1 1 . 3 9 2 1 . Overload Shots 20 | . . . . . . . 10 . 1 6 . . . 3 . . Effects 2 | . . . . . . . . . . 2 . . . . . . Heat Surge 1 | . . . . . . . . . . 1 . . . . . . Short Circuit 1 | . . . . . . . . . . 1 . . . . . . Overflow Damage 199 | . 16 2 . . 22 . . . . 10 59 . . 52 38 . Projectiles 115 | . 16 2 . . . . . . . 10 35 . . 52 . . Explosions 84 | . . . . . 22 . . . . . 24 . . . 38 . Melee . | . . . . . . . . . . . . . . . . . Knockbacks 25 | . 6 1 . . . . . . . . . . 2 16 . . Impact . | . . . . . . . . . . . . . . . . . Kinetic 23 | . 6 1 . . . . . . . . . . 2 14 . . Secondary 2 | . . . . . . . . . . . . . . 2 . . Self-Inflicted Damage 402 | . . . . . . . . . . . 155 . 36 . . 211 Shots 8 | . . . . . . . . . . . 5 . 1 . . 2 Rammed 23 | . 4 2 3 1 . 1 3 . 3 . 2 . 1 3 . . Targets Rammed 29 | . 4 2 4 1 . 1 3 . 4 . 4 . 1 5 . . Kicked . | . . . . . . . . . . . . . . . . . Crushed 6 | . . . 1 . . . . . 1 . 2 . . 2 . . Highest Temperature 512 | 273 213 20 265 68 28 110 308 216 254 282 492 188 512 424 99 . Average Temperature 84 | 94 52 9 42 28 16 37 67 125 101 81 147 63 161 86 58 . Received Heat Transfer 3537 | . 138 . 247 20 . 120 474 . 225 414 183 . 399 1080 237 . Effects 17 | . . . . . . . 1 . 2 . 8 . 3 3 . . Shutdowns 5 | . . . . . . . . . . . 2 . 1 2 . . Energy Bleed 2 | . . . . . . . 1 . . . . . . 1 . . Interference 5 | . . . . . . . . . 2 . 3 . . . . . Matter Decay 1 | . . . . . . . . . . . . . 1 . . . Damage (minor) 2 | . . . . . . . . . . . 1 . 1 . . . Damage (major) 2 | . . . . . . . . . . . 2 . . . . . Siege Activations . | . . . . . . . . . . . . . . . . . Martial Activations . | . . . . . . . . . . . . . . . . . Shielding Activations . | . . . . . . . . . . . . . . . . . Robots Disrupted . | . . . . . . . . . . . . . . . . . Combat Hostiles . | . . . . . . . . . . . . . . . . . Robots Corrupted . | . . . . . . . . . . . . . . . . . Combat Hostiles . | . . . . . . . . . . . . . . . . . Parts Fried . | . . . . . . . . . . . . . . . . . Impact Corruptions . | . . . . . . . . . . . . . . . . . Robots Melted 4 | . . . . . . . 2 . . . . . . 2 . . Combat Hostiles 4 | . . . . . . . 2 . . . . . . 2 . . Parts Melted 46 | 2 2 . 3 . . . 17 . 2 2 3 . . 15 . . Heat Transferred 23871 | 888 1258 . 1258 . . . 8466 37 2183 1652 1258 37 740 5769 325 . Parts Sabotaged . | . . . . . . . . . . . . . . . . . Parts Stolen . | . . . . . . . . . . . . . . . . . Parts Stripped . | . . . . . . . . . . . . . . . . . Power Chain Reactions . | . . . . . . . . . . . . . . . . . Alert | -11 -10 -10 -9 -9 -9 -8 -8 -8 -8 -8 -7 -7 -7 -6 -6 -6 ------- Run | Yrd Mat Min Mat Min Exi Min Mat Gar Mat Gar Fac Was Fac Fac Gar Fac Maximum Alert Level 3 | . . . 2 . . . 2 3 1 3 2 . . 3 2 1 Low Security (%) 55 | 100 100 100 43 100 . 100 68 . 19 11 . 100 100 67 . . Level 1 22 | . . . 48 . . . 10 . 80 12 44 . . 3 . 100 Level 2 20 | . . . 7 . . . 20 81 . 68 55 . . 23 100 . Level 3 2 | . . . . . . . . 18 . 7 . . . 6 . . Level 4 . | . . . . . . . . . . . . . . . . . Level 5 . | . . . . . . . . . . . . . . . . . High Security . | . . . . . . . . . . . . . . . . . Max Security . | . . . . . . . . . . . . . . . . . Peak Influence 832 | 15 104 85 432 180 . 90 630 811 395 832 601 199 171 750 688 321 Initial 519 | . . . 21 95 . . 27 406 395 113 436 199 70 79 519 321 Average 220 | 2 27 12 199 37 . 23 171 595 264 499 436 149 97 215 637 311 Influence Increases 8294 | 35 352 167 1292 197 . 258 1350 405 698 749 697 1 435 1352 254 52 Destroy 0b10 Robot/C 4520 | . 220 100 720 160 . 120 840 . 400 460 460 . 180 720 140 . Destroy 0b10 Robot/NC 480 | 35 40 . 90 . . 40 50 . 75 . 40 . 10 100 . . Destroy Leader 1124 | . 58 10 188 20 . 20 232 . 114 40 134 . 72 226 10 . Allied During Kill 59 | . . . . 2 . . . . 57 . . . . . . . Successful Hack 272 | . 33 . 87 . . . 61 . 32 12 10 . 13 24 . . Select Force Hacks 100 | . . . 50 . . 50 . . . . . . . . . . Disable Machine 480 | . . 15 45 15 . . 75 . . . 30 . 60 210 . 30 Anti-Garrison Action 650 | . . . . . . . . 400 . 200 . . . . 50 . Destroy Structure 264 | . 1 12 7 . . 13 17 5 20 37 23 1 25 42 39 22 Lose Combat Pursuer 345 | . . 30 105 . . 15 75 . . . . . 75 30 15 . Influence Decreases 7941 | 35 352 112 1101 443 . 188 794 220 1334 92 960 470 372 773 383 312 Entered New Map 2321 | . . . 34 151 . . 43 220 416 62 396 370 30 84 223 292 Time Decay 4298 | 35 290 112 607 292 . 188 581 . 678 . 534 100 342 519 . 20 Lost Part 440 | . 10 . 10 . . . 20 . 10 30 30 . . 170 160 . Lost Ally 80 | . . . . . . . . . 80 . . . . . . . Purge Threat 802 | . 52 . 450 . . . 150 . 150 . . . . . . . Squads Dispatched 46 | . 2 . 5 1 . 1 10 . 2 . 5 . 5 15 . . Investigation 10 | . 1 . 4 1 . 1 . . . . 1 . 2 . . . Extermination 8 | . . . . . . . . . . . 2 . 2 4 . . Reinforcement 18 | . 1 . 1 . . . 3 . 2 . 2 . 1 8 . . Assault 1 | . . . . . . . 1 . . . . . . . . . Garrison 9 | . . . . . . . 6 . . . . . . 3 . . Intercept . | . . . . . . . . . . . . . . . . . Searches Triggered . | . . . . . . . . . . . . . . . . . Construction Impeded 2 | . . . . . . . . . . . . . . 2 . . Haulers Reinforced 3 | . . . . . . . . . . . . . . 3 . . Active Scanning Responses . | . . . . . . . . . . . . . . . . . Cargo Convoy Interrupts 1 | . . . . . . . . . . . 1 . . . . . Stealth | -11 -10 -10 -9 -9 -9 -8 -8 -8 -8 -8 -7 -7 -7 -6 -6 -6 --------- Run | Yrd Mat Min Mat Min Exi Min Mat Gar Mat Gar Fac Was Fac Fac Gar Fac Distress Signals 23 | . . . 5 . . . 3 . 3 . 2 . 2 8 . . Communications Jammed . | . . . . . . . . . . . . . . . . . Distress Signals . | . . . . . . . . . . . . . . . . . Times Spotted 337 | . 22 7 50 8 5 7 57 . 27 29 36 6 16 49 18 . Peak Tracking Total 11 | . 3 3 5 3 6 3 5 . 3 5 11 3 3 8 6 . Tactical Retreats 17 | . . 1 4 . . 1 3 . . . . . 5 2 1 . Traps | -11 -10 -10 -9 -9 -9 -8 -8 -8 -8 -8 -7 -7 -7 -6 -6 -6 ------- Run | Yrd Mat Min Mat Min Exi Min Mat Gar Mat Gar Fac Was Fac Fac Gar Fac Traps Triggered 23 | . . . 2 . . . . 1 . 9 1 . 1 3 6 . Indirectly 2 | . . . . . . . . . . 2 . . . . . . Trap Hack Attempts . | . . . . . . . . . . . . . . . . . Triggered . | . . . . . . . . . . . . . . . . . Disarmed . | . . . . . . . . . . . . . . . . . Reprogrammed . | . . . . . . . . . . . . . . . . . Reused . | . . . . . . . . . . . . . . . . . Traps Extracted . | . . . . . . . . . . . . . . . . . Installed . | . . . . . . . . . . . . . . . . . Triggered . | . . . . . . . . . . . . . . . . . Machines | -11 -10 -10 -9 -9 -9 -8 -8 -8 -8 -8 -7 -7 -7 -6 -6 -6 ---------- Run | Yrd Mat Min Mat Min Exi Min Mat Gar Mat Gar Fac Was Fac Fac Gar Fac Machines Disabled 41 | . . 1 3 1 4 . 5 2 . 2 2 . 4 14 1 2 Max in Single Turn 4 | . . 1 1 1 2 . 1 1 . 1 2 . 2 4 1 2 Garrison Relay 5 | . . . . . . . . 2 . 2 . . . . 1 . Machines Repaired . | . . . . . . . . . . . . . . . . . Machines Dismantled . | . . . . . . . . . . . . . . . . . Machines Sabotaged 2 | . . . 1 . . 1 . . . . . . . . . . Overloaded Fab Kills . | . . . . . . . . . . . . . . . . . Hacking | -11 -10 -10 -9 -9 -9 -8 -8 -8 -8 -8 -7 -7 -7 -6 -6 -6 --------- Run | Yrd Mat Min Mat Min Exi Min Mat Gar Mat Gar Fac Was Fac Fac Gar Fac Machines Accessed 75 | . 10 1 13 2 . 1 14 3 12 2 3 . 3 10 1 . Terminals 51 | . 8 . 10 1 . 1 8 3 7 2 1 . 3 6 1 . Fabricators 2 | . . . . . . . . . . . . . . 2 . . Repair Stations 4 | . . . 2 . . . 1 . . . 1 . . . . . Recycling Units 8 | . 2 . . . . . 2 . 2 . 1 . . 1 . . Scanalyzers 5 | . . . 1 . . . 2 . 2 . . . . . . . Garrison Access 3 | . . . . . . . 1 . 1 . . . . 1 . . Total Hacks 228 | . 39 1 46 3 . 1 47 5 39 3 7 . 8 28 1 . Successful 121 | . 18 1 26 3 . 1 31 1 25 1 1 . 3 10 . . Failed 106 | . 21 . 19 . . . 16 4 14 2 6 . 5 18 1 . Catastrophic 20 | . 1 . 7 . . . 2 2 2 . 3 . 1 1 1 . Database Lockouts 1 | . . . 1 . . . . . . . . . . . . . Manual 115 | . 33 . 19 2 3 1 22 . 17 . 2 . 8 8 . . Terminals 162 | . 33 . 35 2 . 1 29 5 22 3 4 . 8 19 1 . Fabricators 6 | . . . . . . . . . . . . . . 6 . . Repair Stations 11 | . . . 7 . . . 3 . . . 1 . . . . . Recycling Units 22 | . 6 . . . . . 6 . 6 . 2 . . 2 . . Scanalyzers 22 | . . . 4 . . . 8 . 10 . . . . . . . Garrison Access 3 | . . . . . . . 1 . 1 . . . . 1 . . Terminal Hacks 58 | . 10 1 15 2 . . 13 1 9 1 . . 1 5 . . Record 2 | . . . . . . . . . 1 . . . . 1 . . Part Schematic 4 | . 2 . 1 . . . . . . . . . . 1 . . Robot Analysis 7 | . 3 . 1 . . . 1 . 2 . . . . . . . Prototype ID Bank 8 | . . . 3 . . . 2 . 2 . . . . 1 . . Open Door 3 | . . 1 . 1 . . . 1 . . . . . . . . Branch Access Points 1 | . . . . . . . . . . . . . 1 . . . Machine Index 1 | . . . 1 . . . . . . . . . . . . . Scanalyzer Index 1 | . . . . . . . 1 . . . . . . . . . Alert Level 9 | . 1 . 4 1 . . 3 . . . . . . . . . Unreport Threat 7 | . 2 . 3 . . . 1 . 1 . . . . . . . Locate Traps 4 | . . . 1 . . . 1 . 1 . . . . 1 . . Dispatch Records 1 | . . . . . . . 1 . . . . . . . . . Maintenance Status 1 | . 1 . . . . . . . . . . . . . . . Hauler Manifests 6 | . 1 . 1 . . . 3 . . . . . . 1 . . Zone Layout 2 | . . . . . . . . . 2 . . . . . . . Garrison Registry 1 | . . . . . . . . . . 1 . . . . . . Fabricator Hacks 1 | . . . . . . . . . . . . . . 1 . . Network Status 1 | . . . . . . . . . . . . . . 1 . . Repair Station Hacks 8 | . . . 6 . . . 2 . . . . . . . . . Scan Component 4 | . . . 3 . . . 1 . . . . . . . . . Repair 4 | . . . 3 . . . 1 . . . . . . . . . Recycling Unit Hacks 1 | . 1 . . . . . . . . . . . . . . . Retrieve Matter 1 | . 1 . . . . . . . . . . . . . . . Scanalyzer 18 | . . . 2 . . . 8 . 8 . . . . . . . Insert Component 5 | . . . 1 . . . . . 4 . . . . . . . Analyze 5 | . . . 1 . . . . . 4 . . . . . . . Retrieve Study 8 | . . . . . . . 8 . . . . . . . . . Garrison Access Hacks 3 | . . . . . . . 1 . 1 . . . . 1 . . Unlock Access 3 | . . . . . . . 1 . 1 . . . . 1 . . Unauthorized Hacks 32 | . 7 . 3 1 . 1 7 . 7 . 1 . 2 3 . . Terminals 18 | . 5 . 3 1 . 1 3 . 2 . . . 2 1 . . Botnet 13 | . 3 . 2 1 . . 2 . 2 . . . 2 1 . . Operators 1 | . . . . . . . 1 . . . . . . . . . Skim 1 | . 1 . . . . . . . . . . . . . . . Sabotage 2 | . . . 1 . . 1 . . . . . . . . . . Search 1 | . 1 . . . . . . . . . . . . . . . Fabricators 2 | . . . . . . . . . . . . . . 2 . . Fabnet 1 | . . . . . . . . . . . . . . 1 . . Haulers 1 | . . . . . . . . . . . . . . 1 . . Repair Stations . | . . . . . . . . . . . . . . . . . Recycling Units 12 | . 2 . . . . . 4 . 5 . 1 . . . . . Reject 6 | . 1 . . . . . 2 . 2 . 1 . . . . . Recyclers 1 | . . . . . . . . . 1 . . . . . . . Mask 5 | . 1 . . . . . 2 . 2 . . . . . . . Scanalyzers . | . . . . . . . . . . . . . . . . . Garrison Access . | . . . . . . . . . . . . . . . . . Data Cores Recovered 2 | . 1 . . . . . 1 . . . . . . . . . Used 1 | . 1 . . . . . . . . . . . . . . . Hacking Detections 61 | . 9 . 11 1 . . 13 2 8 1 3 . 3 9 1 . Full Trace Events 4 | . 1 . 1 . . . . . . . 1 . 1 . . . Feedback Events . | . . . . . . . . . . . . . . . . . Feedback Blocked . | . . . . . . . . . . . . . . . . . Robot Schematics Acquired . | . . . . . . . . . . . . . . . . . Robots Built . | . . . . . . . . . . . . . . . . . Authchips . | . . . . . . . . . . . . . . . . . Time . | . . . . . . . . . . . . . . . . . Total Robot Build Rating . | . . . . . . . . . . . . . . . . . Part Schematics Acquired 9 | . 2 . 2 . . . . . 4 . . . . 1 . . Parts Built . | . . . . . . . . . . . . . . . . . Authchips . | . . . . . . . . . . . . . . . . . Time . | . . . . . . . . . . . . . . . . . Total Part Build Rating . | . . . . . . . . . . . . . . . . . Part Studies Acquired 7 | . . . . . . . 7 . . . . . . . . . Parts Repaired 4 | . . . 3 . . . 1 . . . . . . . . . Time 100 | . . . 74 . . . 26 . . . . . . . . . Parts Recycled . | . . . . . . . . . . . . . . . . . Recycled Matter . | . . . . . . . . . . . . . . . . . Retrieved Matter . | . . . . . . . . . . . . . . . . . Retrieved Components . | . . . . . . . . . . . . . . . . . Parts Scanalyzed 5 | . . . 1 . . . . . 4 . . . . . . . Part Schematics Acquired 5 | . . . 1 . . . . . 4 . . . . . . . Parts Damaged . | . . . . . . . . . . . . . . . . . Bothacking | -11 -10 -10 -9 -9 -9 -8 -8 -8 -8 -8 -7 -7 -7 -6 -6 -6 ------------ Run | Yrd Mat Min Mat Min Exi Min Mat Gar Mat Gar Fac Was Fac Fac Gar Fac Used RIF Installer 2 | . . . . . . . . 1 . 1 . . . . . . Zone Cloak 1 | . . . . . . . . . . 1 . . . . . . Robots Hacked 11 | . . . . . . . . . . . . 6 . 2 3 . Non-combat 2 | . . . . . . . . . . . . . . 2 . . Combat 9 | . . . . . . . . . . . . 6 . . 3 . Robot Hacks Applied 12 | . . . . . . . . . . . . 6 . 3 3 . parse_system 1 | . . . . . . . . . . . . . . 1 . . no_distress 1 | . . . . . . . . . . . . . . 1 . . drop_inventory 1 | . . . . . . . . . . . . . . 1 . . ignore_targets 6 | . . . . . . . . . . . . 6 . . . . amplify_resonance 3 | . . . . . . . . . . . . . . . 3 . Relay Couplers Released 22 | . . . . . . . . 7 . 11 . . . . 4 . Machine Destruction 18 | . . . . . . . . 7 . 7 . . . . 4 . Programmers 4 | . . . . . . . . . . 4 . . . . . . Attached 4 | . . . . . . . . . . 1 . 1 . . 2 . Fabnet Peak Effective % . | . . . . . . . . . . . . . . . . . Robots Rewired 7 | . . . . . . . . 7 . . . . . . . . Allies Hacked . | . . . . . . . . . . . . . . . . . Hacks Repelled . | . . . . . . . . . . . . . . . . . Allies | -11 -10 -10 -9 -9 -9 -8 -8 -8 -8 -8 -7 -7 -7 -6 -6 -6 -------- Run | Yrd Mat Min Mat Min Exi Min Mat Gar Mat Gar Fac Was Fac Fac Gar Fac Total Allies 8 | . . . . 1 . . . 7 . . . . . . . . Largest Group 7 | . . . . 1 1 . . 7 7 . . . . . . . Highest-Rated Group 119 | . . . . 31 31 . . 119 119 . . . . . . . Highest-Rated Ally 31 | . . . . 31 31 . . 25 25 . . . . . . . Total Orders 1 | . . 1 . . . . . . . . . . . . . . RETURN 1 | . . 1 . . . . . . . . . . . . . . Ally Attacks 51 | . . . . 5 . . . . 46 . . . . . . . Total Damage 978 | . . . . 103 . . . . 875 . . . . . . . Kills 9 | . . . . 2 . . . . 7 . . . . . . . Allies Corrupted . | . . . . . . . . . . . . . . . . . Allies Melted . | . . . . . . . . . . . . . . . . . Intel | -11 -10 -10 -9 -9 -9 -8 -8 -8 -8 -8 -7 -7 -7 -6 -6 -6 ------- Run | Yrd Mat Min Mat Min Exi Min Mat Gar Mat Gar Fac Was Fac Fac Gar Fac Active Infowar (turns) 2039 | . . . . . . . 1 . . 1283 755 . . . . . Seismic 2039 | . . . . . . . 1 . . 1283 755 . . . . . Robot Analysis Total 7 | . 3 . 1 . . . 1 . 2 . . . . . . . Derelict Logs Recovered 2 | . . 1 . 1 . . . . . . . . . . . . Drone Launches 1 | . . 1 . . . . . . . . . . . . . . Drone Recoveries 1 | . . 1 . . . . . . . . . . . . . . Exploration | -11 -10 -10 -9 -9 -9 -8 -8 -8 -8 -8 -7 -7 -7 -6 -6 -6 ------------- Run | Yrd Mat Min Mat Min Exi Min Mat Gar Mat Gar Fac Was Fac Fac Gar Fac Turns Passed 21292 | 193 1311 1136 2551 1475 799 828 2609 926 2662 1283 1512 217 773 2702 258 57 Spaces Moved 8881 | 86 682 671 1277 701 318 283 1024 418 956 467 511 67 248 964 139 69 Core 122 | 5 . . . . . . . . . . . . . . 48 69 Treads 8401 | 81 682 671 1277 701 318 283 1024 418 956 467 511 67 248 697 . . Legs 1 | . . . . . . . . . . . . . . . 1 . Wheels 357 | . . . . . . . . . . . . . . 267 90 . Hover . | . . . . . . . . . . . . . . . . . Flight . | . . . . . . . . . . . . . . . . . Fastest Speed 50 | 50 160 160 160 160 160 160 155 206 201 201 206 250 210 123 50 50 Average Speed 193 | 153 160 160 160 160 172 233 189 206 240 220 248 250 248 218 96 80 Slowest Speed 320 | 160 160 160 160 160 320 240 211 206 250 250 250 250 290 240 265 200 Overloaded Moves . | . . . . . . . . . . . . . . . . . Propulsion Burnouts . | . . . . . . . . . . . . . . . . . Robots Hopped . | . . . . . . . . . . . . . . . . . Potential Cave-ins . | . . . . . . . . . . . . . . . . . Cave-ins Triggered . | . . . . . . . . . . . . . . . . . Exploration Rate (%) 54 | 4 95 100 94 99 43 56 81 67 74 53 15 73 8 25 30 2 Regions Visited 16 Branch Regions 4 Pre-discovered Areas . | . . . . . . . . . . . . . . . . . Known Exits Taken 3 | . . . . . . . 1 . 1 . . . . 1 . . Unknown Exits Taken 8 | 1 1 1 1 1 1 1 . . . . . . 1 . . . Scrap Searched 5 | . . 1 . 3 . 1 . . . . . . . . . . Spaces Dug 2 | . . . . . 1 . . . 1 . . . . . . . Terrain Destroyed 262 | . . 14 . . 38 25 13 . 22 5 20 2 21 39 35 28 Melee 1 | . . . . . 1 . . . . . . . . . . . Projectile 94 | . . . . . . 24 2 . 22 5 2 2 21 16 . . AOE 166 | . . 14 . . 37 . 11 . . . 18 . . 23 35 28 Terrain Rammed . | . . . . . . . . . . . . . . . . . Walls Destroyed . | . . . . . . . . . . . . . . . . . Machines Disabled . | . . . . . . . . . . . . . . . . . Actions | -11 -10 -10 -9 -9 -9 -8 -8 -8 -8 -8 -7 -7 -7 -6 -6 -6 --------- Run | Yrd Mat Min Mat Min Exi Min Mat Gar Mat Gar Fac Was Fac Fac Gar Fac Total 11584 | 110 803 710 1600 1038 527 383 1461 479 1202 618 647 89 333 1274 239 71 Wait 1313 | . 42 22 141 313 141 44 247 26 130 39 45 . 29 82 12 . Move 8869 | 85 681 670 1276 700 317 282 1024 417 956 466 511 66 247 964 138 69 Hop . | . . . . . . . . . . . . . . . . . Pick Up 120 | 2 13 2 18 5 11 . 17 6 11 8 7 1 3 14 2 . Fast Attach 98 | 6 2 . 11 . 6 2 12 3 8 11 6 1 6 23 . 1 Attach 46 | . 1 . 3 . 7 . 2 . . 4 4 1 2 11 11 . Detach 8 | . 1 . . . 1 . 1 . 1 . . . . 3 1 . Swap 106 | . 4 2 16 2 3 2 17 1 12 5 9 4 3 23 3 . Drop 178 | . 4 . 35 7 15 2 32 9 20 14 11 1 7 19 2 . Fire 716 | 17 51 12 95 10 5 50 106 17 60 58 50 15 35 114 20 1 Melee 39 | . . . 1 . 21 . . . . . . . . 16 1 . Ram . | . . . . . . . . . . . . . . . . . Kick . | . . . . . . . . . . . . . . . . . Crush 29 | . 4 2 4 1 . 1 3 . 4 . 4 . 1 5 . . Escape Stasis 62 | . . . . . . . . . . 13 . . . . 49 . Rewire . | . . . . . . . . . . . . . . . . . Trap . | . . . . . . . . . . . . . . . . . Miscellaneous . | . . . . . . . . . . . . . . . . . Route ------- -11/Scrapyard -10/Materials (discovered 5 exits: *Mat x3 / *Min / [*Sub]) -10/Mines (discovered 3 exits: *Mat x2 / [*Sub]) -9/Materials (discovered 4 exits: *Mat x3 / *Min) -9/Mines (discovered 3 exits: *Mat x2 / *Exi) -9/Exiles -8/Mines -8/Materials (discovered 4 exits: *Fac x3 / Gar) -8/Garrison (discovered 2 exits: *Mat x2) -8/Materials (discovered 3 exits: *Fac x2 / Gar) -8/Garrison (discovered 3 exits: *Fac x3) -7/Factory -7/Waste -7/Factory (discovered 5 exits: *Fac / Sto x2 / Low x2) -6/Factory (discovered 2 exits: [*Fac] / Gar) -6/Garrison -6/Factory History --------- Turn | Location | Event 10 | -11/Scrapyard | Discovered new exit (range 16) 194 | -11/Scrapyard | Entered Materials 321 | -10/Materials | Build established: Mutant 573 | -10/Materials | Discovered new exit (range 16) 816 | -10/Materials | Discovered new exit (range 9) 1034 | -10/Materials | Discovered new exit (range 4) 1304 | -10/Materials | Discovered new exit (range 16) 1314 | -10/Materials | Discovered new exit (range 10) 1505 | -10/Materials | Entered Mines 1983 | -10/Mines | Learned Materials emergency access door positions 2017 | -10/Mines | Discovered new exit (range 11) 2018 | -10/Mines | Found the Drone Emporium 2025 | -10/Mines | Found Prototype Device 2035 | -10/Mines | Identified Splice Drone Bay 2122 | -10/Mines | Discovered new exit (range 10) 2219 | -10/Mines | Discovered new exit (range 11) 2641 | -10/Mines | Entered Materials 2641 | -9/Materials | Evolved 2 slots: Utility x1, Weapon x1 2938 | -9/Materials | Build established: Tank 3324 | -9/Materials | Discovered new exit (range 5) 3420 | -9/Materials | Discovered new exit (range 10) 3699 | -9/Materials | Discovered new exit (range 3) 3846 | -9/Materials | Repaired Shield Generator 4082 | -9/Materials | Discovered new exit (range 9) 4258 | -9/Materials | Central database locked down 5000 | -9/Materials | Repaired Shield Generator 5028 | -9/Materials | Repaired Lgt. Treads 5192 | -9/Materials | Entered Mines 5295 | -9/Mines | Discovered new exit (range 14) 5394 | -9/Mines | Escorted by a lone wolf Derelict 5446 | -9/Mines | Received a Rocket Launcher from a helpful Derelict 5481 | -9/Mines | Discovered new exit (range 16) 5557 | -9/Mines | Learned 8 Materials zone layouts 5913 | -9/Mines | Deemed a non-threat by the Exiles lab entrance 5913 | -9/Mines | Discovered new exit (range 5) 5964 | -9/Mines | Met a Derelict shopkeep closing up shop 6667 | -9/Mines | Entered Exiles 6667 | -9/Exiles | Accompanied by 1 ally 6838 | -9/Exiles | Discovered new exit (range 15) 6922 | -9/Exiles | Met 8R-AWN 6947 | -9/Exiles | Met EX-HEX 6962 | -9/Exiles | Attacked by the Exiles 6987 | -9/Exiles | Murdered 4 allies 7032 | -9/Exiles | Destroyed 8R-AWN 7265 | -9/Exiles | Build established: Mutant 7330 | -9/Exiles | Found Prototype Ballistic Gun 7330 | -9/Exiles | Identified 8R-AWN's Boregun 7466 | -9/Exiles | Entered Mines 7640 | -8/Mines | Build established: Tank 7805 | -8/Mines | Discovered new exit (range 14) 8294 | -8/Mines | Entered Materials 8294 | -8/Materials | Evolved 2 slots: Propulsion x1, Utility x1 8439 | -8/Materials | Repaired Lgt. Treads 8661 | -8/Materials | Discovered new exit (range 8) 9164 | -8/Materials | Discovered new exit (range 16) 10027 | -8/Materials | Discovered new exit (range 4) 10088 | -8/Materials | Garrison activated, responded to threat 10632 | -8/Materials | Garrison activated, responded to threat 10694 | -8/Materials | First assault squad dispatched 10735 | -8/Materials | Garrison activated, responded to threat 10903 | -8/Materials | Identified exit to Garrison 10903 | -8/Materials | Entered Garrison 10903 | -8/Garrison | Discovered recently destroyed garrison 10995 | -8/Garrison | Garrison Relay disabled 11281 | -8/Garrison | Discovered new exit (range 10) 11559 | -8/Garrison | Discovered new exit (range 9) 11595 | -8/Garrison | Installed Relay Interface Framework 11658 | -8/Garrison | Garrison Relay disabled 11829 | -8/Garrison | Entered Materials 11829 | -8/Materials | Accompanied by 7 allies 11937 | -8/Materials | Build established: Commander-Tank 12317 | -8/Materials | Lost 3 allies 12421 | -8/Materials | Discovered new exit (range 7) 12572 | -8/Materials | Build established: Tank 13837 | -8/Materials | Discovered new exit (range 16) 14491 | -8/Materials | Identified exit to Garrison 14491 | -8/Materials | Entered Garrison 14600 | -8/Garrison | Expanded RIF knowledge: Zone Cloak 14781 | -8/Garrison | Triggered checkpoint 14781 | -8/Garrison | Destroyed 7 combat bots 14845 | -8/Garrison | Triggered checkpoint 14989 | -8/Garrison | Triggered checkpoint 15005 | -8/Garrison | Garrison Relay disabled 15091 | -8/Garrison | Discovered new exit (range 11) 15167 | -8/Garrison | Triggered checkpoint 15317 | -8/Garrison | Build established: Gunner 15450 | -8/Garrison | Discovered new exit (range 13) 15487 | -8/Garrison | Triggered checkpoint 15577 | -8/Garrison | Discovered new exit (range 77) 15577 | -8/Garrison | Discovered new exit (range 30) 15577 | -8/Garrison | Discovered new exit (range 23) 15677 | -8/Garrison | Garrison Relay disabled 15774 | -8/Garrison | Entered Factory 15774 | -7/Factory | Evolved 2 slots: Utility x1, Weapon x1 16272 | -7/Factory | Build established: Tank 16520 | -7/Factory | Cargo convoy interrupted 16562 | -7/Factory | Destroyed 9 combat bots 17286 | -7/Factory | Sucked down chute 17286 | -7/Factory | Entered Waste 17301 | -7/Waste | EMP discharged 17301 | -7/Waste | System corruption reached 10% 17306 | -7/Waste | Spotted C-40 Crusher 17315 | -7/Waste | Spotted C-40 Crusher 17333 | -7/Waste | Spotted C-40 Crusher 17335 | -7/Waste | Spotted C-40 Crusher 17347 | -7/Waste | Spotted C-40 Crusher 17397 | -7/Waste | Spotted C-40 Crusher 17401 | -7/Waste | EMP discharged 17431 | -7/Waste | Discovered new exit (range 16) 17501 | -7/Waste | EMP discharged 17501 | -7/Waste | System corruption reached 30% 17503 | -7/Waste | Entered Factory 17692 | -7/Factory | Identified exit to Storage 17692 | -7/Factory | Identified exit to Lower Caves 18247 | -7/Factory | Discovered new exit (range 7) 18276 | -7/Factory | Entered another Factory area 18276 | -6/Factory | Evolved 2 slots: Power x1, Propulsion x1 18525 | -6/Factory | Discovered new exit (range 8) 18564 | -6/Factory | Build established: Scavenger-Tank 18912 | -6/Factory | Build established: Tank 20218 | -6/Factory | Destroyed 7 combat bots 20243 | -6/Factory | Lost 8 parts (1p3n1u3w) 20489 | -6/Factory | Build established: Scavenger-Gunner 20664 | -6/Factory | System corruption reached 10% 20788 | -6/Factory | Lost 6 parts (1p2n3w) 20978 | -6/Factory | Identified exit to Garrison 20978 | -6/Factory | Entered Garrison 21018 | -6/Garrison | Build established: Scavenger-Mutant 21038 | -6/Garrison | Triggered checkpoint 21069 | -6/Garrison | Garrison Relay disabled 21112 | -6/Garrison | Heavy support dispatched to Factory 21138 | -6/Garrison | Triggered checkpoint 21154 | -6/Garrison | Core integrity fell below 50% 21154 | -6/Garrison | Triggered checkpoint 21184 | -6/Garrison | Released all parts (6) 21198 | -6/Garrison | Core integrity fell below 20% 21214 | -6/Garrison | Lost 13 parts (2p4n1u6w) 21229 | -6/Garrison | Discovered new exit (range 15) 21236 | -6/Garrison | Entered Factory 21293 | -6/Factory | Destroyed self via exploding Fusion Modulator Last Messages --------------- 21211_ Field strength at 56. 21212_ Field strength at 45. 21214_ Field strength at 29. 21215_ Field strength at 18. 21216_ Adv. EMP Blaster destroyed. 21216_ Stasis field depleted. 21220_ Adv. EMP Blaster destroyed. 21220_ Knocked back. 21229_ EXIT=FOUND 21236_ Attempting to access garrison exit controls... RIF authorized. LOCATION=UNKNOWN GOAL=ESCAPE 21236_ Detecting nearby Garrison Access. 21244_ System corrupted: Component data lost. 21264_ Acquired Prototype Ballistic Cannon. 21264_ Identified Antimatter Cannon. 21277_ System corrupted: Matter fused (-10). 21293_ Fusion Modulator explodes. Map ----- +----------------------------------------------------+ | ?????????????????????????????????????????????????? | | ?????????????????????????????????????????????????? | | ?????????????????????????????????????????????????? | | ?????????????????????????????????????????????????? | | ?????????????????????????????????????????????????? | | ?????????????????????????????????????????????????? | | ?????????????????????????????????????????????????? | | ?????????????????????????????????????????????????? | | ?????????????????????????????????????????????????? | | ?????????????????????????????????????????????????? | | ?????????????????????????????????????????????????? | | ?????????????????????????????????????????????????? | | ?????????????????????????????????????????????????? | | ?????????????????????????????????????????????????? | | ?????????????????????????????????????????????????? | | ?????????????????????????????????????????????????? | | ??????????????????????????????????????? ????????? | | ?????????????????????????????????????? #???????? | | ????????????????????????????????????? #???????? | | ????????????????????????????????????? #???????? | | ???????????????????????????????????? #???????? | | ???????????????????##########?#+#??? #???????? | | ??????????????????## ### #### #???????? | | ??????????????????#; # #???????? | | ?????????????????##; # #???????? | | ?????????????????# ; @ ; #???????? | | ?????????????????# ; ; #???????? | | ?????????????????# ; ; #???????? | | ?????????????????##; ; #### ###???????? | | ?????????????????# ; ; ####+########??? | | ?????????????????##;= # # #?? | | ??????????????????#;;;;;;;;;# # """ #?? | | ??????????????????### # #### # """ #?? | | ????????????????????#####???# + """ !???? | | ????????????????????????????# # ! !!??? | | ????????????????????????????# ##############?? | | ????????????????????????????# # #?????? | | ????????????????????????????# # !#?????? | | ????????????????????????????# # """" #?????? | | ????????????????????????????# # """" #?????? | | ????????????????????????????# + """" #?????? | | ????????????????????????????# # """" #?????? | | ????????????????????????????# # """" *#?????? | | ??????????????????????????### # """" #?????? | | ??????????????????????????# # #?????? | | ??????????????????????????# ##+#######?????? | | ??????????????????????????# #???????????? | | ??????????????????????????# #???????????? | | ??????????????????????????# #???????????? | | ??????????????????????????####+#####+#???????????? | +----------------------------------------------------+ Best States ------------- Heat Dissipation 91 Energy Generation 25 Energy Capacity 805 Matter Stores 300 Matter Capacity 300 Sight Range 16 Terrain Scan Density 10 Base Temperature (-) 150 Armor Coverage 600 Resistance: KI 30 Core Shielding 20 Evasion (%) 50 Recoil Reduction 4 Offensive Hacking 10 Relay Coupler Types 3 Relay Coupler Value 43 Item Schematics ----------------- Huge Storage Unit | -10/Materials | Hacked Lgt. Armor Plating | -10/Materials | Hacked Hvy. Assault Rifle | -9/Materials | Hacked Minigun | -9/Materials | Scanalyzed Imp. Treads | -8/Materials | Scanalyzed Energy Well | -8/Materials | Scanalyzed Greatsword | -8/Materials | Scanalyzed Hvy. Flak Cannon | -8/Materials | Scanalyzed Enh. Gauss Cannon | -6/Factory | Hacked Robot Schematics ------------------ None Fabricated ------------ Nothing Repaired ---------- Shield Generator | 16% | -9/Materials Shield Generator | 6% | -9/Materials Lgt. Treads | 62% | -9/Materials Lgt. Treads | 20% | -8/Materials Studied --------- Lgt. Treads | -8/Materials | Hacked Rocket Launcher | -8/Materials | Hacked Adv. Treads | -8/Materials | Hacked Imp. Treads | -8/Materials | Hacked Deuterium Engine | -8/Materials | Hacked Arm. Treads | -8/Materials | Hacked Imp. Ion Engine | -8/Materials | Hacked Alien Tech Used ----------------- None Achievements -------------- Analysis Probe Ghost 'Em Live, Flee, And Rebuild Taming Of The Crushers That Tickles Well Done Who Guards The Bodyguard? Challenges ------------ None Game ------ Seed GatlingSmartbombProtomatter Manual? 0 Play Time 02:20:06 Cumulative 264.5 hours Start 2025.10.23 @ 09:52:20 End 2025.10.23 @ 16:01:47 Sessions 5 Manual Loads 0 Difficulty Rogue Special Mode None Game No. 138 Rogue 138 Adventurer 0 Explorer 0 Win Type - Total 5 Types 5/0/0/0/0/0/0/0/0/0 Lore% 55 Gallery% 63 Achievement% 37 Wizard Run 0 Options --------- Layout 1 ASCII 0 Keyboard 0 Movement Numpad Keybinds 0 Fullscreen 1 Font 24/Smallcaps Map View 50x35 Zoom Use 0% Tactical HUD 1 Map Filters NONE Filters NONE Steam 1 RUN: dd7bd0a0-38fd-468e-b585-0c87dcdb2b1c